bitfinex/quotes_SOLUSD_20241231
["timestamp","ask_amount","ask_price","bid_price","bid_amount"]
[1735659413269,1.5475,198.07,198.02,15.36301605]
[1735659416296,1.5475,198.07,198.03,15.36301605]
[1735659416893,1.5475,198.07,198.02,15.36301605]
[1735659417391,1.5475,198.07,198.03,15.36301605]
[1735659418095,1.5475,198.07,198.02,15.36301605]
[1735659421098,1.5475,198.07,198.04,15.36301605]
[1735659421801,1.5475,198.07,198.02,15.36301605]
[1735659421979,1.5475,198.07,198.03,15.36301605]
[1735659422179,1.5475,198.07,198.01,15.36301605]
[1735659422480,1.5475,198.07,198.02,15.36301605]
[1735659422674,1.5475,198.07,198.01,15.36301605]
[1735659423002,1.5475,198.07,197.99,137.6]
[1735659423583,1.5475,198.07,197.99,152.96301605]
[1735659423900,1.5475,198.07,197.99,137.6]
[1735659425382,1.5475,198.07,198.0,15.36301605]
[1735659425583,1.5475,198.07,198.01,15.36301605]
[1735659425789,1.5475,198.07,198.02,15.36301605]
[1735659426194,1.5475,198.07,198.01,15.36301605]
[1735659426504,1.5475,198.07,197.98,15.36301605]
[1735659426906,1.5475,198.07,197.99,15.36301605]
[1735659427409,1.5475,198.07,198.0,15.36301605]
[1735659427705,1.5475,198.07,197.99,15.36301605]
[1735659428009,1.5475,198.07,198.0,15.36301605]
[1735659428308,1.5475,198.07,198.01,15.36301605]
[1735659428974,1.5475,198.07,198.0,15.36301605]
[1735659429692,1.5475,198.07,198.01,15.36301605]
[1735659429892,1.5475,198.07,198.0,15.36301605]
[1735659430717,1.5475,198.07,198.01,15.36301605]
[1735659432387,1.5475,198.07,197.99,15.36301605]
[1735659433182,1.5475,198.07,198.0,15.36301605]
[1735659434104,1.5475,198.07,197.98,15.36301605]
[1735659434305,1.5475,198.07,197.99,15.36301605]
[1735659435514,1.5475,198.07,197.98,15.36301605]
[1735659436493,1.5475,198.07,197.96,137.6]
[1735659436494,1.5475,198.07,197.97,15.36301605]
[1735659436693,1.5475,198.07,197.92,143.15842267]
[1735659437013,1.5475,198.07,197.88,45.494261]
[1735659437014,30.175684,198.06,197.93,15.36301605]
[1735659437692,23.776884,198.04,197.92,15.36301605]
[1735659438397,23.776884,198.04,197.93,15.36301605]
[1735659438922,23.776884,198.04,197.92,15.36301605]
[1735659439123,1.5694,198.02,197.92,15.36301605]
[1735659439298,1.5694,198.02,197.88,150.2333]
[1735659439502,1.5694,198.02,197.9,15.36301605]
[1735659440325,1.5694,198.02,197.84,12.73315697]
[1735659440326,27.9682,197.97,197.82,150.2375]
[1735659440537,27.9682,197.97,197.85,15.36301605]
[1735659441013,27.9682,197.97,197.82,150.2375]
[1735659441204,27.9682,197.97,197.86,15.36301605]
[1735659442120,23.776884,197.96,197.82,152.96301605]
[1735659442298,20.0,197.93,197.82,137.6]
[1735659442623,1.5694,197.92,197.81,15.36301605]
[1735659442798,6.3988,197.9,197.79,15.36301605]
[1735659443003,6.3988,197.9,197.77,15.36301605]
[1735659443215,23.776884,197.89,197.77,15.36301605]
[1735659443415,23.776884,197.89,197.76,15.36301605]
[1735659443719,1.6564,197.88,197.76,15.36301605]
[1735659444218,1.6564,197.88,197.8,15.36301605]
[1735659444419,1.6564,197.88,197.74,12.6426]
[1735659444420,1.6564,197.88,197.81,15.36301605]
[1735659444721,1.6564,197.88,197.83,15.36301605]
[1735659445903,1.6564,197.88,197.82,15.36301605]
[1735659446998,1.6564,197.88,197.81,15.36301605]
[1735659447210,1.6564,197.88,197.82,15.36301605]
[1735659447398,1.6564,197.88,197.83,15.36301605]
[1735659447718,1.6564,197.88,197.82,15.36301605]
[1735659448805,1.6564,197.88,197.8,35.36301605]
[1735659449418,1.3208244,197.88,197.8,35.36301605]
[1735659449723,1.3208244,197.88,197.81,15.36301605]
[1735659449903,1.3208244,197.88,197.82,15.36301605]
[1735659450622,1.3208244,197.88,197.81,15.36301605]
[1735659451011,1.3208244,197.88,197.82,15.36301605]
[1735659451710,1.3208244,197.88,197.81,15.36301605]
[1735659452115,1.3208244,197.88,197.78,152.96301605]
[1735659452331,1.3208244,197.88,197.78,137.6]
[1735659452499,1.3208244,197.88,197.76,15.36301605]
[1735659452699,20.0,197.87,197.76,15.36301605]
[1735659453726,20.0,197.87,197.75,15.36301605]
[1735659453922,23.776884,197.86,197.73,35.36301605]
[1735659454604,23.776884,197.86,197.71,15.36301605]
[1735659454798,23.776884,197.86,197.7,12.6449]
[1735659454799,7.8007,197.82,197.7,15.36301605]
[1735659455048,7.8007,197.82,197.71,15.36301605]
[1735659455223,7.8007,197.82,197.73,15.36301605]
[1735659455740,7.8007,197.82,197.75,15.36301605]
[1735659455924,7.8007,197.82,197.76,15.36301605]
[1735659456230,1.6564,197.82,197.76,15.36301605]
[1735659456526,1.6564,197.82,197.77,15.36301605]
[1735659456736,7.6105,197.87,197.79,15.36301605]
[1735659456943,1.5027,197.87,197.82,15.36301605]
[1735659457105,1.5027,197.87,197.81,15.36301605]
[1735659458924,1.5027,197.87,197.83,15.36301605]
[1735659459223,7.6683,197.92,197.85,15.36301605]
[1735659459426,7.6683,197.92,197.86,15.36301605]
[1735659459841,7.6683,197.92,197.85,15.36301605]
[1735659460451,7.6683,197.92,197.86,15.36301605]
[1735659460619,215.3,198.07,197.88,15.36301605]
[1735659460620,7.6282,197.97,197.88,15.36301605]
[1735659460818,7.6282,197.97,197.9,15.36301605]
[1735659461142,1.5605,197.97,197.93,15.36301605]
[1735659461318,1.5605,198.02,197.94,15.36301605]
[1735659461644,1.5605,198.02,197.93,15.36301605]
[1735659461938,1.5605,198.02,197.94,15.36301605]
[1735659462136,1.5605,198.02,197.95,15.36301605]
[1735659463320,1.5605,198.02,197.96,15.36301605]
[1735659463728,1.5605,198.02,197.95,15.36301605]
[1735659464142,20.0,198.12,197.97,15.36301605]
[1735659464348,20.0,198.12,197.98,15.36301605]
[1735659464639,20.0,198.08,197.97,15.36301605]
[1735659464845,7.6282,198.15,198.0,15.36301605]
[1735659465027,7.6282,198.15,198.01,15.36301605]
[1735659465227,23.776884,198.14,198.01,15.36301605]
[1735659465539,20.0,198.12,198.01,15.36301605]
[1735659465743,7.6282,198.15,198.01,15.36301605]
[1735659466547,23.776884,198.14,198.01,15.36301605]
[1735659467041,23.87351141,198.14,198.01,15.36301605]
[1735659467239,23.87351141,198.14,198.0,35.36301605]
[1735659467544,23.87351141,198.14,198.0,20.0]
[1735659468639,20.0,198.11,197.99,15.36301605]
[1735659470151,20.0,198.11,197.97,23.776884]
[1735659470442,20.0,198.11,198.0,15.36301605]
[1735659470646,20.0,198.11,197.99,15.36301605]
[1735659470821,20.0,198.11,197.97,23.776884]
[1735659471150,20.0,198.11,197.99,15.36301605]
[1735659471526,23.776884,198.14,198.02,15.36301605]
[1735659471926,23.776884,198.14,198.01,15.36301605]
[1735659472221,23.776884,198.14,197.97,161.376884]
[1735659472222,23.776884,198.14,198.0,35.36301605]
[1735659472622,23.776884,198.14,198.01,15.36301605]
[1735659472925,23.776884,198.14,198.02,15.36301605]
[1735659474135,7.6282,198.15,198.02,15.36301605]
[1735659475651,7.6282,198.15,198.01,15.36301605]
[1735659475827,7.6282,198.15,198.0,172.96301605]
[1735659476027,7.6282,198.15,198.01,15.36301605]
[1735659476735,7.6282,198.15,198.0,157.6]
[1735659476736,7.6282,198.15,198.0,172.96301605]
[1735659476933,7.6282,198.15,198.01,15.36301605]
[1735659477136,23.776884,198.14,198.0,172.96301605]
[1735659477549,23.776884,198.14,198.01,15.36301605]
[1735659478851,23.776884,198.14,198.0,35.36301605]
[1735659479032,23.776884,198.14,198.01,15.36301605]
[1735659480733,23.776884,198.14,198.0,35.36301605]
[1735659481063,20.0,198.11,197.99,15.36301605]
[1735659481946,20.0,198.11,197.93,137.6]
[1735659481947,23.776884,198.08,197.93,137.6]
[1735659482138,20.0,198.06,197.93,152.96301605]
[1735659482465,20.0,198.06,197.93,15.36301605]
[1735659483041,20.0,198.06,197.94,15.36301605]
[1735659483632,20.0,198.06,197.93,15.36301605]
[1735659483849,20.0,198.06,197.94,15.36301605]
[1735659484045,20.0,198.06,197.95,15.36301605]
[1735659484257,1.5264,198.07,197.96,15.36301605]
[1735659484460,1.5264,198.07,197.98,15.36301605]
[1735659485166,1.5264,198.07,197.97,15.36301605]
[1735659485360,1.5264,198.07,197.95,15.36301605]
[1735659485567,1.5264,198.07,197.96,15.36301605]
[1735659485869,1.5264,198.07,197.97,15.36301605]
[1735659486362,1.5264,198.07,197.94,35.36301605]
[1735659486666,20.0,198.06,197.97,15.36301605]
[1735659486864,1.5264,198.07,197.98,15.36301605]
[1735659487438,1.5264,198.07,197.99,15.36301605]
[1735659488467,1.5264,198.07,197.98,15.36301605]
[1735659488981,1.5264,198.07,197.92,137.6]
[1735659489168,20.0,198.06,197.94,15.36301605]
[1735659490287,20.0,198.06,197.97,15.36301605]
[1735659490597,1.5264,198.07,197.97,15.36301605]
[1735659491056,1.5264,198.07,198.0,15.36301605]
[1735659491263,1.5264,198.07,198.01,15.36301605]
[1735659491470,1.5264,198.07,198.02,15.36301605]
[1735659491980,1.5264,198.07,198.01,15.36301605]
[1735659492360,1.5264,198.07,198.0,15.36301605]
[1735659492564,1.5264,198.07,198.01,15.36301605]
[1735659493178,1.5264,198.07,198.0,172.96301605]
[1735659493482,1.5264,198.07,198.01,15.36301605]
[1735659493783,1.5264,198.07,198.0,172.96301605]
[1735659494279,1.5264,198.07,198.0,152.96301605]
[1735659494778,1.5264,198.07,198.0,137.6]
[1735659495558,1.5264,198.07,197.99,15.36301605]
[1735659497282,1.5264,198.07,197.98,137.6]
[1735659497283,1.5264,198.07,198.0,15.36301605]
[1735659497584,1.5264,198.07,197.98,152.96301605]
[1735659498294,1.5264,198.07,197.99,15.36301605]
[1735659498486,1.5264,198.07,198.0,15.36301605]
[1735659499185,1.5264,198.07,197.95,12.629]
[1735659499388,1.5264,198.07,197.99,15.36301605]
[1735659501511,1.5264,198.07,198.0,15.36301605]
[1735659501672,1.5264,198.07,197.99,15.36301605]
[1735659501997,1.5264,198.07,197.98,137.6]
[1735659502167,20.0,198.06,197.94,15.36301605]
[1735659502367,20.0,198.06,197.93,152.96301605]
[1735659502570,20.0,198.06,197.94,15.36301605]
[1735659503191,7.5178,198.06,197.92,152.96301605]
[1735659503375,20.0,198.03,197.92,152.96301605]
[1735659503699,1.5148,198.02,197.92,15.36301605]
[1735659504004,1.5148,198.02,197.89,137.6]
[1735659504005,1.5148,198.02,197.91,15.36301605]
[1735659504172,1.5148,198.02,197.92,15.36301605]
[1735659504596,1.5148,198.02,197.91,15.36301605]
[1735659504899,1.5148,198.02,197.9,15.36301605]
[1735659505286,1.5148,198.02,197.91,15.36301605]
[1735659505485,1.5148,198.02,197.9,15.36301605]
[1735659505994,1.5148,198.02,197.84,178.2234]
[1735659505995,1.5148,198.02,197.94,15.36301605]
[1735659506393,1.5148,198.02,197.93,15.36301605]
[1735659506699,1.5148,198.02,197.91,152.96301605]
[1735659507206,1.5148,198.02,197.91,137.6]
[1735659507704,1.5148,198.02,197.87,15.36301605]
[1735659507705,29.779884,198.01,197.87,15.36301605]
[1735659507899,1.5148,198.0,197.87,15.36301605]
[1735659508901,1.5148,198.0,197.88,15.36301605]
[1735659510401,1.5148,197.97,197.86,15.36301605]
[1735659511291,1.5148,197.97,197.87,15.36301605]
[1735659511702,1.5148,197.97,197.86,15.36301605]
[1735659511901,1.5148,197.97,197.85,15.36301605]
[1735659512101,1.5148,197.97,197.89,15.36301605]
[1735659512308,1.5148,197.97,197.9,15.36301605]
[1735659512493,1.5148,197.97,197.89,15.36301605]
[1735659513009,1.5148,197.97,197.91,15.36301605]
[1735659513389,1.5148,197.97,197.9,15.36301605]
[1735659514504,1.5148,197.97,197.89,152.96301605]
[1735659515101,1.5148,197.97,197.89,137.6]
[1735659515809,1.5148,197.97,197.89,152.96301605]
[1735659516397,1.5148,197.97,197.89,137.6]
[1735659516601,1.5148,197.97,197.88,15.36301605]
[1735659518318,1.5148,197.97,197.9,15.36301605]
[1735659518523,1.5148,197.97,197.92,15.36301605]
[1735659518698,6.003,198.01,197.94,15.36301605]
[1735659518893,1.5592,198.02,197.96,15.36301605]
[1735659519521,1.5592,198.02,197.97,15.36301605]
[1735659519887,1.5592,198.08,198.0,15.36301605]
[1735659520122,1.5592,198.08,198.02,15.36301605]
[1735659520418,1.5592,198.08,198.03,15.36301605]
[1735659520607,1.5592,198.08,198.02,15.36301605]
[1735659521189,6.4365,198.11,198.02,15.36301605]
[1735659523316,6.4365,198.11,198.01,15.36301605]
[1735659523521,6.4365,198.11,198.0,35.36301605]
[1735659523700,6.4365,198.11,198.01,15.36301605]
[1735659523902,6.4365,198.11,198.0,172.96301605]
[1735659525206,6.4365,198.11,198.0,137.6]
[1735659525522,20.0,198.08,197.97,152.96301605]
[1735659525821,20.0,198.08,197.97,137.6]
[1735659526194,6.4365,198.11,197.99,39.13990005]
[1735659526396,6.4365,198.11,198.01,15.36301605]
[1735659527001,6.4365,198.11,198.0,15.36301605]
[1735659528628,6.4365,198.11,198.01,15.36301605]
[1735659528925,6.4365,198.11,198.02,35.36301605]
[1735659530300,6.4365,198.11,198.03,39.13990005]
[1735659530927,1.5592,198.12,198.05,15.36301605]
[1735659531140,1.5592,198.12,198.06,15.36301605]
[1735659531436,1.5592,198.12,198.07,15.36301605]
[1735659531601,1.5592,198.12,198.06,15.36301605]
[1735659532026,1.5592,198.12,198.05,15.36301605]
[1735659535321,1.5592,198.12,198.06,15.36301605]
[1735659535542,1.6216,198.17,198.11,15.36301605]
[1735659537041,1.6216,198.17,198.12,15.36301605]
[1735659537241,6.4003,198.2,198.13,15.36301605]
[1735659537451,6.4003,198.2,198.11,15.36301605]
[1735659538024,1.6523,198.27,198.19,39.13990005]
[1735659538250,1.6523,198.27,198.19,15.36301605]
[1735659538414,1.6523,198.27,198.18,39.13990005]
[1735659538615,1.6523,198.27,198.21,15.36301605]
[1735659539241,1.6523,198.32,198.23,15.36301605]
[1735659539537,1.6523,198.38,198.28,15.36301605]
[1735659540170,1.6523,198.38,198.27,39.13990005]
[1735659540321,1.6523,198.38,198.23,137.6]
[1735659540322,1.6523,198.38,198.3,23.776884]
[1735659540528,1.6523,198.38,198.31,15.36301605]
[1735659541137,1.6523,198.38,198.3,39.13990005]
[1735659541443,1.6523,198.38,198.31,15.36301605]
[1735659542531,1.6523,198.38,198.31,23.776884]
[1735659543053,1.6523,198.38,198.27,15.36301605]
[1735659543424,1.6523,198.38,198.28,15.36301605]
[1735659543624,1.6523,198.38,198.29,15.36301605]
[1735659543822,1.6523,198.38,198.3,15.36301605]
[1735659544631,1.6523,198.38,198.29,15.36301605]
[1735659545348,1.6523,198.38,198.3,15.36301605]
[1735659545549,1.6523,198.38,198.29,15.36301605]
[1735659546225,1.6523,198.38,198.27,15.36301605]
[1735659546451,1.6523,198.38,198.28,15.36301605]
[1735659547228,1.6523,198.38,198.29,15.36301605]
[1735659547556,1.6523,198.38,198.28,15.36301605]
[1735659548134,1.6523,198.38,198.29,15.36301605]
[1735659548432,1.6523,198.38,198.3,15.36301605]
[1735659548631,1.6523,198.38,198.28,15.36301605]
[1735659548835,1.6523,198.38,198.3,15.36301605]
[1735659550253,5.0,198.48,198.34,15.36301605]
[1735659550254,7.9477,198.48,198.34,15.36301605]
[1735659550655,20.0,198.44,198.34,15.36301605]
[1735659550957,7.9477,198.48,198.36,15.36301605]
[1735659551251,7.9477,198.48,198.36,23.776884]
[1735659551458,7.9477,198.48,198.36,39.13990005]
[1735659552256,20.0,198.45,198.34,152.96301605]
[1735659552431,20.0,198.43,198.3,15.36301605]
[1735659552752,20.0,198.39,198.26,15.36301605]
[1735659555733,20.0,198.39,198.27,15.36301605]
[1735659555933,20.0,198.39,198.28,15.36301605]
[1735659556236,7.9477,198.42,198.31,15.36301605]
[1735659556437,7.9477,198.42,198.33,15.36301605]
[1735659556955,7.9477,198.42,198.32,15.36301605]
[1735659557751,7.9477,198.42,198.3,15.36301605]
[1735659557931,7.9477,198.42,198.24,12.6109]
[1735659557932,20.0,198.39,198.27,15.36301605]
[1735659559061,20.0,198.39,198.28,15.36301605]
[1735659561053,20.0,198.39,198.29,15.36301605]
[1735659561764,20.0,198.39,198.28,15.36301605]
[1735659563053,20.0,198.39,198.25,161.376884]
[1735659563054,20.0,198.39,198.27,15.36301605]
[1735659563461,20.0,198.39,198.26,15.36301605]
[1735659563761,20.0,198.35,198.24,15.36301605]
[1735659564252,20.0,198.35,198.25,15.36301605]
[1735659564455,1.603,198.37,198.28,15.36301605]
[1735659564630,1.603,198.37,198.27,15.36301605]
[1735659565243,1.603,198.37,198.26,15.36301605]
[1735659565445,5.0,198.44,198.22,161.376884]
[1735659565446,6.5124,198.46,198.36,15.36301605]
[1735659565651,6.5124,198.46,198.37,15.36301605]
[1735659567459,6.5124,198.46,198.38,15.36301605]
[1735659567758,6.5124,198.46,198.39,15.36301605]
[1735659568058,6.5124,198.46,198.4,15.36301605]
[1735659568363,1.603,198.49,198.42,15.36301605]
[1735659568860,1.603,198.49,198.35,137.6]
[1735659568861,1.603,198.49,198.44,15.36301605]
[1735659569043,1.603,198.49,198.43,15.36301605]
[1735659569241,1.603,198.54,198.44,39.13990005]
[1735659569443,1.603,198.54,198.45,15.36301605]
[1735659570175,1.603,198.54,198.44,39.13990005]
[1735659570552,1.603,198.54,198.44,15.36301605]
[1735659570749,1.603,198.54,198.43,152.96301605]
[1735659571139,1.603,198.54,198.44,15.36301605]
[1735659571560,1.603,198.54,198.45,15.36301605]
[1735659571844,1.603,198.54,198.46,15.36301605]
[1735659572150,1.603,198.54,198.49,15.36301605]
[1735659572546,1.603,198.54,198.48,15.36301605]
[1735659573258,0.024,198.56,198.5,15.36301605]
[1735659573466,0.024,198.56,198.49,15.36301605]
[1735659573659,0.024,198.56,198.5,15.36301605]
[1735659574674,0.024,198.56,198.48,15.36301605]
[1735659575048,0.024,198.56,198.49,15.36301605]
[1735659575246,0.024,198.56,198.44,161.376884]
[1735659575247,0.024,198.56,198.48,15.36301605]
[1735659575576,0.024,198.56,198.47,15.36301605]
[1735659575869,0.024,198.56,198.48,15.36301605]
[1735659576563,0.024,198.56,198.47,15.36301605]
[1735659577069,0.024,198.56,198.48,15.36301605]
[1735659577871,0.024,198.56,198.47,15.36301605]
[1735659578066,0.024,198.56,198.48,15.36301605]
[1735659578369,0.024,198.56,198.49,15.36301605]
[1735659579280,0.024,198.56,198.5,15.36301605]
[1735659580053,0.024,198.56,198.51,15.36301605]
[1735659580581,0.024,198.56,198.5,15.36301605]
[1735659581181,0.024,198.56,198.55,15.36301605]
[1735659581470,0.024,198.56,198.5,15.36301605]
[1735659581471,0.024,198.56,198.54,15.36301605]
[1735659582881,0.024,198.56,198.53,15.36301605]
[1735659583056,0.024,198.56,198.54,15.36301605]
[1735659583682,0.024,198.56,198.55,39.13990005]
[1735659584974,0.024,198.56,198.54,35.36301605]
[1735659585158,0.024,198.56,198.54,15.36301605]
[1735659586184,0.024,198.56,198.55,15.36301605]
[1735659587584,0.024,198.56,198.53,15.36301605]
[1735659588485,0.024,198.56,198.54,15.36301605]
[1735659589182,0.024,198.56,198.55,15.36301605]
[1735659589763,0.024,198.56,198.54,15.36301605]
[1735659590782,0.024,198.56,198.53,15.36301605]
[1735659590985,0.024,198.56,198.52,15.36301605]
[1735659591165,0.024,198.56,198.49,15.36301605]
[1735659591359,0.024,198.56,198.48,15.36301605]
[1735659591675,0.024,198.56,198.49,15.36301605]
[1735659591985,0.024,198.56,198.47,15.36301605]
[1735659592163,0.024,198.56,198.46,15.36301605]
[1735659592369,0.024,198.56,198.47,15.36301605]
[1735659592577,0.024,198.56,198.46,15.36301605]
[1735659593693,0.024,198.56,198.47,15.36301605]
[1735659594292,0.024,198.56,198.45,15.36301605]
[1735659594472,0.024,198.56,198.46,15.36301605]
[1735659595287,0.024,198.56,198.48,15.36301605]
[1735659595673,0.024,198.56,198.49,15.36301605]
[1735659596278,0.024,198.56,198.51,15.36301605]
[1735659596473,0.024,198.56,198.52,15.36301605]
[1735659596675,0.024,198.56,198.46,23.776884]
[1735659596676,0.024,198.56,198.51,15.36301605]
[1735659597472,0.024,198.56,198.52,15.36301605]
[1735659597706,0.024,198.56,198.53,15.36301605]
[1735659598068,0.024,198.56,198.54,15.36301605]
[1735659598399,0.024,198.56,198.48,23.776884]
[1735659598400,0.024,198.56,198.55,15.36301605]
[1735659599273,0.024,198.56,198.55,39.13990005]
[1735659601278,0.024,198.56,198.55,15.36301605]
[1735659602293,0.024,198.56,198.53,23.776884]
[1735659602491,0.024,198.56,198.55,15.36301605]
[1735659605982,0.024,198.56,198.55,176.73990005]
[1735659606182,7.8527,198.72,198.59,137.6]
[1735659606383,7.8527,198.72,198.63,15.36301605]
[1735659606899,7.8527,198.72,198.65,15.36301605]
[1735659608488,7.8527,198.72,198.67,15.36301605]
[1735659608800,1.5794,198.77,198.7,15.36301605]
[1735659608992,1.5794,198.77,198.69,15.36301605]
[1735659609704,1.5794,198.77,198.66,15.36301605]
[1735659610794,1.5794,198.77,198.67,15.36301605]
[1735659614108,1.5794,198.77,198.6,180.373484]
[1735659614406,23.776884,198.74,198.62,15.36301605]
[1735659614593,43.776884,198.72,198.6,15.36301605]
[1735659614800,20.0,198.72,198.61,15.36301605]
[1735659615686,23.776884,198.71,198.59,15.36301605]
[1735659615887,23.776884,198.71,198.57,15.36301605]
[1735659616101,8.077,198.7,198.56,15.36301605]
[1735659616999,23.776884,198.69,198.52,137.6]
[1735659617508,8.077,198.7,198.59,15.36301605]
[1735659617694,8.077,198.7,198.53,161.376884]
[1735659617897,8.077,198.7,198.57,15.36301605]
[1735659618202,23.776884,198.69,198.57,15.36301605]
[1735659618383,23.776884,198.69,198.56,35.36301605]
[1735659619418,23.776884,198.69,198.55,15.36301605]
[1735659619711,25.356284,198.65,198.53,15.36301605]
[1735659620416,20.0,198.62,198.53,15.36301605]
[1735659620618,20.0,198.62,198.47,139.1832]
[1735659620819,6.4976,198.61,198.49,15.36301605]
[1735659621004,6.4976,198.61,198.5,15.36301605]
[1735659621907,1.5794,198.6,198.47,15.36301605]
[1735659622109,20.0,198.58,198.47,15.36301605]
[1735659622310,23.776884,198.57,198.45,15.36301605]
[1735659622499,23.776884,198.57,198.46,15.36301605]
[1735659623197,23.776884,198.57,198.45,15.36301605]
[1735659623398,23.776884,198.57,198.46,15.36301605]
[1735659623616,23.776884,198.57,198.45,15.36301605]
[1735659623795,23.776884,198.57,198.44,15.36301605]
[1735659624115,23.776884,198.57,198.45,15.36301605]
[1735659624321,1.6264,198.53,198.39,144.0091]
[1735659624499,6.4211,198.52,198.37,137.6]
[1735659624690,6.4211,198.52,198.4,15.36301605]
[1735659624894,6.4211,198.52,198.35,12.6038]
[1735659624895,20.0,198.48,198.39,15.36301605]
[1735659625110,20.0,198.48,198.38,15.36301605]
[1735659625319,6.4211,198.52,198.4,15.36301605]
[1735659625499,6.4211,198.52,198.42,15.36301605]
[1735659625813,6.4211,198.52,198.36,12.6033]
[1735659625814,6.4211,198.52,198.44,15.36301605]
[1735659626013,6.4211,198.52,198.46,15.36301605]
[1735659626813,6.4211,198.52,198.45,15.36301605]
[1735659628811,6.4211,198.52,198.44,15.36301605]
[1735659630422,6.4211,198.52,198.46,15.36301605]
[1735659630621,6.4211,198.52,198.45,15.36301605]
[1735659630997,6.4211,198.52,198.47,15.36301605]
[1735659631325,1.6264,198.53,198.47,15.36301605]
[1735659631494,1.6264,198.61,198.5,15.36301605]
[1735659632104,1.6264,198.61,198.49,15.36301605]
[1735659632323,20.0,198.6,198.48,15.36301605]
[1735659632818,23.776884,198.59,198.48,15.36301605]
[1735659633901,23.776884,198.59,198.47,15.36301605]
[1735659634118,20.0,198.6,198.51,15.36301605]
[1735659634422,1.6264,198.61,198.51,15.36301605]
[1735659635807,1.6264,198.61,198.54,15.36301605]
[1735659635994,1.6264,198.61,198.46,137.6]
[1735659636202,1.6264,198.61,198.44,15.36301605]
[1735659636396,31.625184,198.59,198.39,12.6013]
[1735659636722,23.776884,198.55,198.42,15.36301605]
[1735659637105,1.6346,198.51,198.42,15.36301605]
[1735659638205,1.6346,198.51,198.43,15.36301605]
[1735659638411,1.6346,198.51,198.44,15.36301605]
[1735659639705,1.6346,198.51,198.43,15.36301605]
[1735659639914,1.6346,198.51,198.4,15.36301605]
[1735659640302,6.5264,198.5,198.4,15.36301605]
[1735659640504,6.5264,198.5,198.39,15.36301605]
[1735659641118,6.5264,198.5,198.39,20.0]
[1735659641326,6.5264,198.5,198.42,15.36301605]
[1735659641506,6.5264,198.5,198.44,15.36301605]
[1735659641818,1.6346,198.51,198.44,15.36301605]
[1735659644224,1.6346,198.51,198.46,15.36301605]
[1735659644527,1.508,198.56,198.5,15.36301605]
[1735659644905,1.508,198.56,198.51,15.36301605]
[1735659645715,6.5264,198.6,198.52,15.36301605]
[1735659646224,6.5264,198.6,198.48,20.0]
[1735659646422,6.5264,198.6,198.5,15.36301605]
[1735659647630,6.5264,198.6,198.52,15.36301605]
[1735659649237,6.5264,198.6,198.53,15.36301605]
[1735659649419,1.508,198.61,198.56,15.36301605]
[1735659650019,6.5264,198.65,198.56,15.36301605]
[1735659651015,6.5264,198.65,198.57,15.36301605]
[1735659651434,6.5264,198.65,198.56,15.36301605]
[1735659652040,6.5264,198.65,198.54,35.36301605]
[1735659652553,6.5264,198.65,198.55,15.36301605]
[1735659654140,6.5264,198.65,198.53,15.36301605]
[1735659654449,6.5264,198.65,198.52,15.36301605]
[1735659654743,20.0,198.62,198.51,15.36301605]
[1735659655528,20.0,198.62,198.52,15.36301605]
[1735659656245,20.0,198.62,198.51,35.36301605]
[1735659656422,20.0,198.62,198.52,15.36301605]
[1735659657545,6.5264,198.65,198.54,15.36301605]
[1735659657840,6.5264,198.65,198.56,15.36301605]
[1735659658342,6.5264,198.65,198.55,15.36301605]
[1735659659848,6.5264,198.65,198.56,15.36301605]
[1735659660339,6.5264,198.65,198.54,15.36301605]
[1735659660537,23.776884,198.64,198.5,137.6]
[1735659660741,23.776884,198.64,198.51,15.36301605]
[1735659660917,20.0,198.61,198.51,15.36301605]
[1735659661532,20.0,198.61,198.48,15.36301605]
[1735659661741,1.5385,198.6,198.48,15.36301605]
[1735659662721,1.5385,198.6,198.45,144.0009]
[1735659662722,1.5385,198.6,198.47,15.36301605]
[1735659663042,20.0,198.56,198.47,15.36301605]